[Event "*** SCC Grand Prix: Titled Tuesday Blitz"]
[Site "Chess.com"]
[Date "2020.08.25"]
[Round "6"]
[White "chesstatour"]
[Black "Duong57"]
[Result "1/2-1/2"]
[WhiteElo "1923"]
[BlackElo "2352"]
[TimeControl "180+1"]
[EndTime "11:10:02 PDT"]
[Termination "Game drawn by repetition"]

1. c4 {[%clk 0:03:00.9]} 1... e5 {[%clk 0:02:59.3]} 2. Nc3 {[%clk 0:03:01.8]}
2... Nf6 {[%clk 0:02:58.6]} 3. Nf3 {[%clk 0:03:01.2]} 3... Nc6 {[%clk
0:02:57.6]} 4. d4 {[%clk 0:02:59.2]} 4... exd4 {[%clk 0:02:55.2]} 5. Nxd4 {[%clk
0:03:00.1]} 5... Bb4 {[%clk 0:02:55.1]} 6. g3 {[%clk 0:02:56.7]} 6... O-O {[%clk
0:02:54.1]} 7. Bg2 {[%clk 0:02:56.5]} 7... Bc5 {[%clk 0:02:45.2]} 8. Nb3 {[%clk
0:02:36.3]} 8... Bb4 {[%clk 0:02:30.5]} 9. O-O {[%clk 0:02:31]} 9... d6 {[%clk
0:02:30.6]} 10. Nd5 {[%clk 0:02:23.9]} 10... Nxd5 {[%clk 0:02:21]} 11. cxd5
{[%clk 0:02:24.8]} 11... Na5 {[%clk 0:02:11.2]} 12. Nd4 {[%clk 0:02:08.6]} 12...
Bc5 {[%clk 0:02:10.7]} 13. Nc2 {[%clk 0:01:26.5]} 13... Bb6 {[%clk 0:01:48.3]}
14. Qd3 {[%clk 0:01:19.9]} 14... Qf6 {[%clk 0:01:35.8]} 15. b4 {[%clk
0:01:06.8]} 15... Re8 {[%clk 0:01:15.5]} 16. bxa5 {[%clk 0:00:58.2]} 16... Bxa5
{[%clk 0:01:16.4]} 17. e4 {[%clk 0:00:51.6]} 17... Bb6 {[%clk 0:01:05.9]} 18.
Be3 {[%clk 0:00:49.4]} 18... Bd7 {[%clk 0:00:58.7]} 19. Bd4 {[%clk 0:00:41.4]}
19... Qg6 {[%clk 0:00:57.1]} 20. Kh1 {[%clk 0:00:32.6]} 20... f5 {[%clk
0:00:56.3]} 21. f3 {[%clk 0:00:31.6]} 21... Rf8 {[%clk 0:00:34]} 22. Bxb6 {[%clk
0:00:30.5]} 22... axb6 {[%clk 0:00:33.6]} 23. Nd4 {[%clk 0:00:30.1]} 23... fxe4
{[%clk 0:00:25.5]} 24. fxe4 {[%clk 0:00:24.1]} 24... Rxf1+ {[%clk 0:00:25.4]}
25. Bxf1 {[%clk 0:00:18.3]} 25... Qf6 {[%clk 0:00:21.9]} 26. Bg2 {[%clk
0:00:16.8]} 26... Ra4 {[%clk 0:00:21.2]} 27. Nc2 {[%clk 0:00:15.5]} 27... Ra5
{[%clk 0:00:17.2]} 28. a3 {[%clk 0:00:14.7]} 28... Bb5 {[%clk 0:00:15.2]} 29.
Qd2 {[%clk 0:00:13.1]} 29... Qe5 {[%clk 0:00:09.3]} 30. Re1 {[%clk 0:00:11.3]}
30... Ra4 {[%clk 0:00:08]} 31. Qf4 {[%clk 0:00:10.1]} 31... Rc4 {[%clk
0:00:07.3]} 32. Qxe5 {[%clk 0:00:09.8]} 32... dxe5 {[%clk 0:00:08.2]} 33. Ne3
{[%clk 0:00:08.7]} 33... Rc3 {[%clk 0:00:08.6]} 34. Nf5 {[%clk 0:00:07.3]} 34...
Rxa3 {[%clk 0:00:08.2]} 35. Rc1 {[%clk 0:00:07.5]} 35... c6 {[%clk 0:00:04.6]}
36. dxc6 {[%clk 0:00:07.5]} 36... bxc6 {[%clk 0:00:05.1]} 37. h3 {[%clk
0:00:04.1]} 37... g6 {[%clk 0:00:05.3]} 38. Ne7+ {[%clk 0:00:03.9]} 38... Kf7
{[%clk 0:00:05.8]} 39. Nxc6 {[%clk 0:00:04]} 39... Ke6 {[%clk 0:00:05.9]} 40.
Nd8+ {[%clk 0:00:03.1]} 40... Ke7 {[%clk 0:00:06.3]} 41. Nc6+ {[%clk 0:00:02.4]}
41... Ke6 {[%clk 0:00:04.9]} 42. Nb4 {[%clk 0:00:02.3]} 42... Rb3 {[%clk
0:00:04.6]} 43. Nd5 {[%clk 0:00:02]} 43... Rb2 {[%clk 0:00:04.5]} 44. Kh2 {[%clk
0:00:02]} 44... Bd3 {[%clk 0:00:04]} 45. Re1 {[%clk 0:00:01.9]} 45... Rc2 {[%clk
0:00:03.4]} 46. Ne3 {[%clk 0:00:02.1]} 46... Rb2 {[%clk 0:00:03.2]} 47. Ng4
{[%clk 0:00:01.8]} 47... b5 {[%clk 0:00:03.4]} 48. Rg1 {[%clk 0:00:01.5]} 48...
Bxe4 {[%clk 0:00:02.9]} 49. h4 {[%clk 0:00:02.4]} 49... Bd5 {[%clk 0:00:03]} 50.
Kh3 {[%clk 0:00:02.4]} 50... Bxg2+ {[%clk 0:00:03.2]} 51. Rxg2 {[%clk
0:00:02.8]} 51... Rb4 {[%clk 0:00:04.1]} 52. Re2 {[%clk 0:00:02.9]} 52... Rd4
{[%clk 0:00:04.3]} 53. Nf2 {[%clk 0:00:03.7]} 53... Kd6 {[%clk 0:00:04.6]} 54.
Rb2 {[%clk 0:00:04.2]} 54... b4 {[%clk 0:00:04.6]} 55. Ng4 {[%clk 0:00:04.9]}
55... Ke6 {[%clk 0:00:04.7]} 56. Nf2 {[%clk 0:00:05.3]} 56... Kf5 {[%clk
0:00:05]} 57. Kg2 {[%clk 0:00:05.8]} 57... e4 {[%clk 0:00:04.6]} 58. Nh3 {[%clk
0:00:04.9]} 58... e3 {[%clk 0:00:03.8]} 59. Kf3 {[%clk 0:00:05.1]} 59... Rc4
{[%clk 0:00:03.6]} 60. Kxe3 {[%clk 0:00:05.1]} 60... Kg4 {[%clk 0:00:03.8]} 61.
Nf2+ {[%clk 0:00:04.6]} 61... Kxg3 {[%clk 0:00:04.1]} 62. Nd3 {[%clk 0:00:04.3]}
62... Kxh4 {[%clk 0:00:04.6]} 63. Rxb4 {[%clk 0:00:04.1]} 63... Rxb4 {[%clk
0:00:05]} 64. Nxb4 {[%clk 0:00:04.8]} 64... g5 {[%clk 0:00:05.9]} 65. Nd3 {[%clk
0:00:05.3]} 65... g4 {[%clk 0:00:06.8]} 66. Kf2 {[%clk 0:00:05.6]} 66... h5
{[%clk 0:00:06.4]} 67. Nf4 {[%clk 0:00:05.2]} 67... Kg5 {[%clk 0:00:06.6]} 68.
Ne6+ {[%clk 0:00:04.6]} 68... Kf5 {[%clk 0:00:06.7]} 69. Nd4+ {[%clk 0:00:04.8]}
69... Ke4 {[%clk 0:00:06.4]} 70. Ne2 {[%clk 0:00:04.8]} 70... h4 {[%clk
0:00:06.4]} 71. Kg2 {[%clk 0:00:04.7]} 71... Ke3 {[%clk 0:00:06.7]} 72. Ng1
{[%clk 0:00:04.2]} 72... Kf4 {[%clk 0:00:06.8]} 73. Ne2+ {[%clk 0:00:04.2]}
73... Ke3 {[%clk 0:00:07.2]} 74. Ng1 {[%clk 0:00:04.2]} 74... Ke4 {[%clk
0:00:06.1]} 75. Ne2 {[%clk 0:00:03.2]} 75... Ke3 {[%clk 0:00:06]} 1/2-1/2

[Event "*** SCC Grand Prix: Titled Tuesday Blitz"]
[Site "Chess.com"]
[Date "2020.08.25"]
[Round "6"]
[White "BocharovD"]
[Black "Alexander_Zubov"]
[Result "0-1"]
[WhiteElo "2721"]
[BlackElo "2959"]
[TimeControl "180+1"]
[EndTime "11:10:06 PDT"]
[Termination "Alexander_Zubov won by resignation"]

1. c4 {[%clk 0:03:00.1]} 1... c5 {[%clk 0:02:59.5]} 2. Nf3 {[%clk 0:02:57.2]}
2... g6 {[%clk 0:02:58.1]} 3. d4 {[%clk 0:02:56]} 3... cxd4 {[%clk 0:02:57.5]}
4. Nxd4 {[%clk 0:02:55.7]} 4... Nf6 {[%clk 0:02:54.9]} 5. Nc3 {[%clk 0:02:41]}
5... d5 {[%clk 0:02:54.3]} 6. cxd5 {[%clk 0:02:36.1]} 6... Nxd5 {[%clk
0:02:53.6]} 7. Ndb5 {[%clk 0:02:36.1]} 7... Nxc3 {[%clk 0:02:53.6]} 8. Qxd8+
{[%clk 0:02:36.3]} 8... Kxd8 {[%clk 0:02:53.8]} 9. Nxc3 {[%clk 0:02:37]} 9...
Bg7 {[%clk 0:02:53.8]} 10. g3 {[%clk 0:02:33.4]} 10... Bxc3+ {[%clk 0:02:51.5]}
11. bxc3 {[%clk 0:02:33]} 11... Bd7 {[%clk 0:02:50.9]} 12. f3 {[%clk 0:02:16.4]}
12... Na6 {[%clk 0:02:33.7]} 13. e4 {[%clk 0:02:15.4]} 13... Nc5 {[%clk
0:02:33.6]} 14. Be3 {[%clk 0:02:14]} 14... Rc8 {[%clk 0:02:33.6]} 15. Rb1 {[%clk
0:02:13.1]} 15... b6 {[%clk 0:02:32.3]} 16. Bc4 {[%clk 0:01:38.5]} 16... Ke8
{[%clk 0:02:18.1]} 17. Bd5 {[%clk 0:01:19.7]} 17... Be6 {[%clk 0:02:06.4]} 18.
Bxe6 {[%clk 0:00:36.6]} 18... Nxe6 {[%clk 0:02:01.5]} 19. Kd2 {[%clk 0:00:37]}
19... Rc4 {[%clk 0:01:46.3]} 20. Rb4 {[%clk 0:00:35.2]} 20... Rc6 {[%clk
0:01:42.7]} 21. a4 {[%clk 0:00:32]} 21... f6 {[%clk 0:01:39.5]} 22. Ra1 {[%clk
0:00:31.5]} 22... Kf7 {[%clk 0:01:37]} 23. a5 {[%clk 0:00:24.4]} 23... Rd8+
{[%clk 0:01:36.2]} 24. Kc2 {[%clk 0:00:24.3]} 24... Rdc8 {[%clk 0:01:35.2]} 25.
Ra3 {[%clk 0:00:18]} 25... bxa5 {[%clk 0:01:33.9]} 26. Rba4 {[%clk 0:00:15]}
26... a6 {[%clk 0:01:32.4]} 27. Rxa5 {[%clk 0:00:15.1]} 27... Nc7 {[%clk
0:01:32.9]} 28. Rb3 {[%clk 0:00:04.6]} 28... Nb5 {[%clk 0:01:31.2]} 29. Kd3
{[%clk 0:00:03.5]} 29... Rxc3+ {[%clk 0:01:28.6]} 30. Rxc3 {[%clk 0:00:03.4]}
30... Rxc3+ {[%clk 0:01:29.5]} 31. Kd2 {[%clk 0:00:03.7]} 31... Rc6 {[%clk
0:01:29.7]} 32. h4 {[%clk 0:00:03.5]} 32... Nd6 {[%clk 0:01:28.3]} 33. Kd3
{[%clk 0:00:01.4]} 33... Nc4 {[%clk 0:01:28.1]} 34. Ra2 {[%clk 0:00:02.3]} 34...
Nxe3 {[%clk 0:01:10.5]} 35. Kxe3 {[%clk 0:00:03.2]} 35... Ke6 {[%clk 0:01:06.9]}
36. Ra5 {[%clk 0:00:02.4]} 36... Kd7 {[%clk 0:01:04.7]} 37. g4 {[%clk
0:00:02.6]} 37... Kc7 {[%clk 0:01:04.7]} 38. g5 {[%clk 0:00:02.7]} 38... Kb6
{[%clk 0:01:05.1]} 39. Ra1 {[%clk 0:00:02.9]} 39... a5 {[%clk 0:01:04.6]} 40.
gxf6 {[%clk 0:00:03.2]} 40... Rxf6 {[%clk 0:01:03.2]} 41. f4 {[%clk 0:00:03.6]}
41... Rc6 {[%clk 0:00:59.6]} 42. h5 {[%clk 0:00:02.5]} 42... Kb5 {[%clk
0:00:52.3]} 43. hxg6 {[%clk 0:00:03.4]} 43... hxg6 {[%clk 0:00:51.9]} 44. Rb1+
{[%clk 0:00:03.8]} 44... Ka6 {[%clk 0:00:52.1]} 45. Ra1 {[%clk 0:00:04]} 45...
Rb6 {[%clk 0:00:51.3]} 46. Kd4 {[%clk 0:00:04.2]} 46... Kb5 {[%clk 0:00:48.5]}
47. Rb1+ {[%clk 0:00:04.5]} 47... Kc6 {[%clk 0:00:48.6]} 48. Rg1 {[%clk
0:00:04.9]} 48... Kd7 {[%clk 0:00:45.5]} 49. Ra1 {[%clk 0:00:04.9]} 49... Ra6
{[%clk 0:00:45.9]} 50. Kc5 {[%clk 0:00:05.3]} 50... Rf6 {[%clk 0:00:36.6]} 51.
Rxa5 {[%clk 0:00:03.4]} 51... Rxf4 {[%clk 0:00:36.5]} 52. Kd4 {[%clk 0:00:04.3]}
52... Ke6 {[%clk 0:00:35.3]} 53. Ke3 {[%clk 0:00:04.7]} 53... Rf1 {[%clk
0:00:34.5]} 54. Ra6+ {[%clk 0:00:04.9]} 54... Kf7 {[%clk 0:00:35]} 55. Ra5
{[%clk 0:00:05.2]} 55... Rf6 {[%clk 0:00:34.8]} 56. Ra8 {[%clk 0:00:03.7]} 56...
Rf1 {[%clk 0:00:33.6]} 57. Ra5 {[%clk 0:00:03.6]} 57... Kg7 {[%clk 0:00:32.4]}
58. Ke2 {[%clk 0:00:03.9]} 58... Rf7 {[%clk 0:00:30.5]} 59. Ke3 {[%clk
0:00:04.8]} 59... Kh6 {[%clk 0:00:30.6]} 60. Ra6 {[%clk 0:00:04.8]} 60... Kh5
{[%clk 0:00:30.4]} 61. Ra2 {[%clk 0:00:03.3]} 61... g5 {[%clk 0:00:30.4]} 62.
Rh2+ {[%clk 0:00:03.7]} 62... Kg6 {[%clk 0:00:30.7]} 63. Rg2 {[%clk 0:00:04]}
63... Rf4 {[%clk 0:00:31.2]} 64. Rg1 {[%clk 0:00:04.9]} 64... Kf6 {[%clk
0:00:29.2]} 65. Ra1 {[%clk 0:00:04.8]} 65... e6 {[%clk 0:00:28.3]} 66. Rg1
{[%clk 0:00:04.2]} 66... Rh4 {[%clk 0:00:28]} 67. Ra1 {[%clk 0:00:04]} 67...
Rh3+ {[%clk 0:00:27.4]} 68. Kf2 {[%clk 0:00:03.5]} 68... Ke5 {[%clk 0:00:27]}
69. Ra5+ {[%clk 0:00:03]} 69... Kf4 {[%clk 0:00:27.2]} 70. Ra6 {[%clk
0:00:03.1]} 70... e5 {[%clk 0:00:27]} 71. Rg6 {[%clk 0:00:03.6]} 71... g4 {[%clk
0:00:26.2]} 72. Kg2 {[%clk 0:00:02.9]} 72... Ra3 {[%clk 0:00:25.9]} 73. Rg7
{[%clk 0:00:02.2]} 73... Ra2+ {[%clk 0:00:25.6]} 74. Kg1 {[%clk 0:00:02.7]}
74... Kg3 {[%clk 0:00:24.6]} 0-1

[Event "*** SCC Grand Prix: Titled Tuesday Blitz"]
[Site "Chess.com"]
[Date "2020.08.25"]
[Round "6"]
[White "chito89"]
[Black "Flawless_Fighter"]
[Result "1-0"]
[WhiteElo "2787"]
[BlackElo "2574"]
[TimeControl "180+1"]
[EndTime "11:10:08 PDT"]
[Termination "chito89 won on time"]

1. Nf3 {[%clk 0:03:00.9]} 1... Nf6 {[%clk 0:02:57.8]} 2. c4 {[%clk 0:03:00.9]}
2... g6 {[%clk 0:02:57.5]} 3. Nc3 {[%clk 0:03:00.5]} 3... Bg7 {[%clk 0:02:57.1]}
4. d4 {[%clk 0:03:00.1]} 4... d6 {[%clk 0:02:57.4]} 5. Bg5 {[%clk 0:02:59.8]}
5... O-O {[%clk 0:02:57.4]} 6. e3 {[%clk 0:02:59.4]} 6... b6 {[%clk 0:02:37.5]}
7. Be2 {[%clk 0:02:53.7]} 7... Bb7 {[%clk 0:02:37.2]} 8. d5 {[%clk 0:02:41.2]}
8... h6 {[%clk 0:02:20.7]} 9. Bh4 {[%clk 0:02:40.7]} 9... Nbd7 {[%clk
0:02:03.7]} 10. O-O {[%clk 0:02:39.5]} 10... g5 {[%clk 0:02:01.6]} 11. Bg3
{[%clk 0:02:39.2]} 11... Nh5 {[%clk 0:02:01.1]} 12. Nd4 {[%clk 0:02:39.1]} 12...
Nxg3 {[%clk 0:01:58.1]} 13. hxg3 {[%clk 0:02:40]} 13... Nf6 {[%clk 0:01:09.5]}
14. g4 {[%clk 0:02:16.3]} 14... Qd7 {[%clk 0:01:06.6]} 15. Bf3 {[%clk 0:02:11]}
15... Rae8 {[%clk 0:00:58.2]} 16. Ncb5 {[%clk 0:02:05.2]} 16... a6 {[%clk
0:00:56.4]} 17. Na7 {[%clk 0:02:05.7]} 17... h5 {[%clk 0:00:38.8]} 18. gxh5
{[%clk 0:02:02.1]} 18... g4 {[%clk 0:00:38.6]} 19. Be2 {[%clk 0:02:02.1]} 19...
e5 {[%clk 0:00:37.9]} 20. dxe6 {[%clk 0:01:56.6]} 20... fxe6 {[%clk 0:00:37.8]}
21. Bxg4 {[%clk 0:01:57.2]} 21... c5 {[%clk 0:00:26.3]} 22. Ndb5 {[%clk
0:01:28.3]} 22... axb5 {[%clk 0:00:25.4]} 23. Nxb5 {[%clk 0:01:29.2]} 23... d5
{[%clk 0:00:24.4]} 24. Bf3 {[%clk 0:01:23.2]} 24... Kh8 {[%clk 0:00:21.2]} 25.
a4 {[%clk 0:01:21.1]} 25... Nh7 {[%clk 0:00:21.1]} 26. a5 {[%clk 0:01:12.9]}
26... Ng5 {[%clk 0:00:20.8]} 27. Bg4 {[%clk 0:01:13.6]} 27... bxa5 {[%clk
0:00:17.6]} 28. Rxa5 {[%clk 0:01:12.9]} 28... Qc6 {[%clk 0:00:17.8]} 29. f3
{[%clk 0:01:08]} 29... Rg8 {[%clk 0:00:17.4]} 30. Ra7 {[%clk 0:01:03.3]} 30...
d4 {[%clk 0:00:17.3]} 31. e4 {[%clk 0:00:58.8]} 31... d3 {[%clk 0:00:17.1]} 32.
Qxd3 {[%clk 0:00:53.5]} 32... Rd8 {[%clk 0:00:16.5]} 33. Qe3 {[%clk 0:00:50.5]}
33... Bh6 {[%clk 0:00:16.8]} 34. Qc3+ {[%clk 0:00:49.7]} 34... Bg7 {[%clk
0:00:16.8]} 35. Qe3 {[%clk 0:00:42.2]} 35... Bh6 {[%clk 0:00:15.1]} 36. Qc3+
{[%clk 0:00:28.4]} 36... Rg7 {[%clk 0:00:15.2]} 37. Qf6 {[%clk 0:00:22.3]} 37...
Nf7 {[%clk 0:00:13.7]} 38. Qxe6 {[%clk 0:00:16.4]} 38... Qxe6 {[%clk 0:00:12.5]}
39. Bxe6 {[%clk 0:00:17.3]} 39... Ne5 {[%clk 0:00:09.6]} 40. Bd5 {[%clk
0:00:14.4]} 40... Be3+ {[%clk 0:00:09.1]} 41. Kh2 {[%clk 0:00:13.1]} 41... Bxd5
{[%clk 0:00:08.8]} 42. Rxg7 {[%clk 0:00:11.9]} 42... Kxg7 {[%clk 0:00:09.7]} 43.
cxd5 {[%clk 0:00:12.2]} 43... Rb8 {[%clk 0:00:09.6]} 44. Nd6 {[%clk 0:00:10.8]}
44... Bf4+ {[%clk 0:00:07.7]} 45. g3 {[%clk 0:00:09.9]} 45... Rxb2+ {[%clk
0:00:06.3]} 46. Kh3 {[%clk 0:00:10.3]} 46... Bd2 {[%clk 0:00:06.3]} 47. f4
{[%clk 0:00:09]} 47... Nd3 {[%clk 0:00:05.6]} 48. Nf5+ {[%clk 0:00:09.6]} 48...
Kf6 {[%clk 0:00:05]} 49. d6 {[%clk 0:00:10.2]} 49... c4 {[%clk 0:00:05.4]} 50.
Ra1 {[%clk 0:00:08.4]} 50... Bb4 {[%clk 0:00:05.3]} 51. Ra6 {[%clk 0:00:06.6]}
51... Nf2+ {[%clk 0:00:06.1]} 52. Kh4 {[%clk 0:00:06.4]} 52... Kf7 {[%clk
0:00:06.3]} 53. d7 {[%clk 0:00:06.5]} 53... Be7+ {[%clk 0:00:04.1]} 54. Nxe7
{[%clk 0:00:04.3]} 54... Kxe7 {[%clk 0:00:04.6]} 55. h6 {[%clk 0:00:04.8]} 55...
Rd2 {[%clk 0:00:05.1]} 56. Ra7 {[%clk 0:00:04.2]} 56... Nxe4 {[%clk 0:00:06]}
57. h7 {[%clk 0:00:04.2]} 57... Rh2+ {[%clk 0:00:04.2]} 58. Kg4 {[%clk
0:00:04.7]} 58... Rxh7 {[%clk 0:00:04.1]} 59. Kf5 {[%clk 0:00:04.7]} 59... Kd8
{[%clk 0:00:05]} 60. Ra8+ {[%clk 0:00:03.5]} 60... Ke7 {[%clk 0:00:04.8]} 61.
Ra7 {[%clk 0:00:04.1]} 61... Kd8 {[%clk 0:00:04.9]} 62. Ra8+ {[%clk 0:00:04.5]}
62... Kxd7 {[%clk 0:00:04.4]} 63. Ra7+ {[%clk 0:00:04.8]} 63... Kc6 {[%clk
0:00:04.7]} 64. Rxh7 {[%clk 0:00:05.7]} 64... c3 {[%clk 0:00:05.1]} 65. Kxe4
{[%clk 0:00:05.6]} 65... c2 {[%clk 0:00:04.6]} 66. Rh1 {[%clk 0:00:06.3]} 66...
c1=Q {[%clk 0:00:05.1]} 67. Rxc1+ {[%clk 0:00:07.2]} 1-0

[Event "*** SCC Grand Prix: Titled Tuesday Blitz"]
[Site "Chess.com"]
[Date "2020.08.25"]
[Round "6"]
[White "catzapto"]
[Black "MikeSailer"]
[Result "1/2-1/2"]
[WhiteElo "2048"]
[BlackElo "2167"]
[TimeControl "180+1"]
[EndTime "11:10:14 PDT"]
[Termination "Game drawn by repetition"]

1. e4 {[%clk 0:03:00.9]} 1... d5 {[%clk 0:02:59.7]} 2. exd5 {[%clk 0:03:00.8]}
2... Qxd5 {[%clk 0:02:59.5]} 3. Nf3 {[%clk 0:03:01.7]} 3... Bg4 {[%clk
0:02:59.1]} 4. Be2 {[%clk 0:03:02.2]} 4... Nc6 {[%clk 0:02:59.8]} 5. Nc3 {[%clk
0:03:02.5]} 5... Qf5 {[%clk 0:02:59.7]} 6. h3 {[%clk 0:03:01.9]} 6... Bxf3
{[%clk 0:02:58.2]} 7. Bxf3 {[%clk 0:03:01.8]} 7... Nf6 {[%clk 0:02:56.9]} 8. d3
{[%clk 0:03:00.2]} 8... e6 {[%clk 0:02:55.8]} 9. Ne4 {[%clk 0:02:55.3]} 9... Nd4
{[%clk 0:02:45.8]} 10. Nxf6+ {[%clk 0:02:48]} 10... Qxf6 {[%clk 0:02:39.3]} 11.
Bxb7 {[%clk 0:02:47.9]} 11... Rb8 {[%clk 0:02:37.1]} 12. Be4 {[%clk 0:02:29.9]}
12... Bd6 {[%clk 0:02:33.7]} 13. c3 {[%clk 0:02:28]} 13... Nf5 {[%clk
0:02:30.1]} 14. Bc6+ {[%clk 0:02:27.4]} 14... Ke7 {[%clk 0:02:27.8]} 15. d4
{[%clk 0:02:18]} 15... Rhd8 {[%clk 0:02:23.7]} 16. Qf3 {[%clk 0:02:07.1]} 16...
Kf8 {[%clk 0:01:50.9]} 17. g4 {[%clk 0:02:02.5]} 17... Nh4 {[%clk 0:01:50.8]}
18. Qxf6 {[%clk 0:02:02.7]} 18... gxf6 {[%clk 0:01:51.5]} 19. Bh6+ {[%clk
0:02:01.2]} 19... Ke7 {[%clk 0:01:48.8]} 20. O-O-O {[%clk 0:01:58]} 20... Ng6
{[%clk 0:01:45.6]} 21. Be4 {[%clk 0:01:41.6]} 21... Nf4 {[%clk 0:01:40.8]} 22.
Kc2 {[%clk 0:01:25.3]} 22... Rb6 {[%clk 0:01:17.8]} 23. Bxh7 {[%clk 0:01:17.2]}
23... Rh8 {[%clk 0:00:56.1]} 24. Bxf4 {[%clk 0:01:15]} 24... Bxf4 {[%clk
0:00:56.4]} 25. Be4 {[%clk 0:01:08.7]} 25... Rhb8 {[%clk 0:00:52.5]} 26. b3
{[%clk 0:01:07.5]} 26... a5 {[%clk 0:00:41]} 27. h4 {[%clk 0:01:03.2]} 27... a4
{[%clk 0:00:41.4]} 28. Rb1 {[%clk 0:01:02.3]} 28... axb3+ {[%clk 0:00:38.5]} 29.
Rxb3 {[%clk 0:01:00.7]} 29... Rxb3 {[%clk 0:00:36.7]} 30. axb3 {[%clk
0:01:01.6]} 30... Ra8 {[%clk 0:00:33.8]} 31. Kb2 {[%clk 0:00:58.2]} 31... Rg8
{[%clk 0:00:30.2]} 32. f3 {[%clk 0:00:57.3]} 32... Kd6 {[%clk 0:00:20.3]} 33. h5
{[%clk 0:00:55.5]} 33... Bh6 {[%clk 0:00:18.8]} 34. Ra1 {[%clk 0:00:50.5]} 34...
Rg5 {[%clk 0:00:14]} 35. Ra6+ {[%clk 0:00:50.1]} 35... Kd7 {[%clk 0:00:14.2]}
36. Bc6+ {[%clk 0:00:47.8]} 36... Ke7 {[%clk 0:00:14.9]} 37. Ra8 {[%clk
0:00:44]} 37... f5 {[%clk 0:00:13.3]} 38. gxf5 {[%clk 0:00:34]} 38... Rxh5
{[%clk 0:00:13.7]} 39. fxe6 {[%clk 0:00:30.9]} 39... fxe6 {[%clk 0:00:14.4]} 40.
c4 {[%clk 0:00:19.8]} 40... Kd6 {[%clk 0:00:13.4]} 41. Be4 {[%clk 0:00:19]}
41... Rh2+ {[%clk 0:00:12.2]} 42. Ka3 {[%clk 0:00:19.5]} 42... Be3 {[%clk
0:00:11.6]} 43. Ra6+ {[%clk 0:00:19.6]} 43... Kd7 {[%clk 0:00:11.4]} 44. Bc6+
{[%clk 0:00:19.2]} 44... Ke7 {[%clk 0:00:11.2]} 45. d5 {[%clk 0:00:18]} 45...
exd5 {[%clk 0:00:11.1]} 46. Bxd5 {[%clk 0:00:18.9]} 46... Bc5+ {[%clk
0:00:04.9]} 47. Ka4 {[%clk 0:00:19.3]} 47... Ra2+ {[%clk 0:00:04.6]} 48. Kb5
{[%clk 0:00:19.8]} 48... Rxa6 {[%clk 0:00:04.2]} 49. Kxa6 {[%clk 0:00:20.7]}
49... Bb4 {[%clk 0:00:03.7]} 50. Kb5 {[%clk 0:00:20.6]} 50... c5 {[%clk
0:00:04.3]} 51. Kc6 {[%clk 0:00:18.5]} 51... Kf6 {[%clk 0:00:04.5]} 52. Be4
{[%clk 0:00:18.3]} 52... Ke5 {[%clk 0:00:03]} 53. Kd7 {[%clk 0:00:18.3]} 53...
Kf4 {[%clk 0:00:02.5]} 54. Ke6 {[%clk 0:00:18.4]} 54... Ba3 {[%clk 0:00:02.9]}
55. Kd5 {[%clk 0:00:17.8]} 55... Bb4 {[%clk 0:00:03.6]} 56. Kd6 {[%clk
0:00:18.3]} 56... Ba3 {[%clk 0:00:04.3]} 57. Kc6 {[%clk 0:00:18.7]} 57... Bb4
{[%clk 0:00:05.1]} 58. Kb5 {[%clk 0:00:19.6]} 58... Ke5 {[%clk 0:00:05]} 59. Ka4
{[%clk 0:00:20.5]} 59... Kf4 {[%clk 0:00:05.7]} 60. Bd5 {[%clk 0:00:19.7]} 60...
Ke5 {[%clk 0:00:06.2]} 61. Kb5 {[%clk 0:00:19.8]} 61... Kf4 {[%clk 0:00:06.7]}
62. Kc6 {[%clk 0:00:20.7]} 62... Ba3 {[%clk 0:00:07.2]} 63. Kd7 {[%clk
0:00:21.6]} 63... Bb4 {[%clk 0:00:07.7]} 64. Ke6 {[%clk 0:00:21.8]} 64... Ba3
{[%clk 0:00:08.5]} 65. Kf6 {[%clk 0:00:22.2]} 65... Bb4 {[%clk 0:00:09.2]} 66.
Kg6 {[%clk 0:00:22.7]} 66... Ba3 {[%clk 0:00:10]} 67. Be4 {[%clk 0:00:23.2]}
67... Bb4 {[%clk 0:00:10.4]} 68. Kh5 {[%clk 0:00:23.6]} 68... Ba3 {[%clk
0:00:11]} 69. Kh4 {[%clk 0:00:24.2]} 69... Bb4 {[%clk 0:00:11.6]} 70. Kh3 {[%clk
0:00:24.8]} 70... Ba3 {[%clk 0:00:12.4]} 71. Kg2 {[%clk 0:00:25.2]} 71... Bb4
{[%clk 0:00:13.1]} 72. Kf2 {[%clk 0:00:25.6]} 72... Ba3 {[%clk 0:00:14]} 73. Ke2
{[%clk 0:00:26.1]} 73... Bb4 {[%clk 0:00:14.8]} 74. Kd3 {[%clk 0:00:26.5]} 74...
Ba3 {[%clk 0:00:15.5]} 75. Kc3 {[%clk 0:00:26.2]} 75... Bb4+ {[%clk 0:00:16.1]}
76. Kb2 {[%clk 0:00:26.5]} 76... Ke5 {[%clk 0:00:16.9]} 77. Bc2 {[%clk 0:00:23]}
77... Kf4 {[%clk 0:00:17.3]} 78. Bd1 {[%clk 0:00:23.1]} 78... Ke5 {[%clk
0:00:17.4]} 79. Kc2 {[%clk 0:00:22.3]} 79... Kf4 {[%clk 0:00:18]} 80. Kd3 {[%clk
0:00:22.7]} 80... Ba3 {[%clk 0:00:18.1]} 81. Kc3 {[%clk 0:00:20.9]} 81... Bb4+
{[%clk 0:00:18.7]} 82. Kb2 {[%clk 0:00:21.4]} 82... Ke5 {[%clk 0:00:19.4]} 83.
Be2 {[%clk 0:00:19.6]} 83... Kf4 {[%clk 0:00:20]} 84. Bd1 {[%clk 0:00:20.1]}
1/2-1/2